bitfinex/quotes_SOLUSD_20240926
["timestamp","ask_amount","ask_price","bid_price","bid_amount"]
[1727372937179,25.50221082,156.31,156.3,0.371402]
[1727372939375,0.12549,156.34,156.3,0.371402]
[1727372939579,0.25098,156.34,156.3,0.371402]
[1727372939892,23.776884,156.33,156.3,0.371402]
[1727372940276,24.027864,156.31,156.3,0.371402]
[1727372941295,30.425364,156.31,156.3,0.371402]
[1727372941594,24.027864,156.31,156.3,0.371402]
[1727372942496,30.425364,156.31,156.3,0.371402]
[1727372942692,50.425364,156.31,156.3,0.371402]
[1727372942996,52.02554043,156.31,156.3,0.371402]
[1727372944987,50.425364,156.31,156.3,0.371402]
[1727372945193,52.02563361,156.31,156.3,0.371402]
[1727372945493,50.425364,156.31,156.3,0.371402]
[1727372945898,20.0,156.31,156.3,0.371402]
[1727372946199,6.3968,156.33,156.3,0.371402]
[1727372946578,6.67069243,156.31,156.3,0.371402]
[1727372947174,30.57306643,156.31,156.3,0.371402]
[1727372947380,6.67069243,156.31,156.3,0.371402]
[1727372947603,6.406,156.4,156.3,0.371402]
[1727372947781,6.3942,156.39,156.3,0.371402]
[1727372948488,6.3947,156.38,156.3,0.371402]
[1727372948679,1.59922929,156.37,156.3,0.371402]
[1727372948880,7.99432929,156.37,156.3,0.371402]
[1727372949200,23.776884,156.36,156.3,0.371402]
[1727372949402,1.59935259,156.35,156.3,0.371402]
[1727372949788,23.776884,156.34,156.3,0.371402]
[1727372949987,23.776884,156.36,156.3,0.371402]
[1727372950184,30.172384,156.36,156.3,0.371402]
[1727372950383,0.12549,156.35,156.3,0.371402]
[1727372952005,23.776884,156.34,156.3,0.371402]
[1727372952302,1.59951911,156.33,156.3,0.371402]
[1727372954498,23.776884,156.32,156.3,0.371402]
[1727372954699,1.59970436,156.31,156.3,0.371402]
[1727372955495,23.776884,156.33,156.3,0.371402]
[1727372955977,0.12549,156.34,156.3,0.371402]
[1727372956202,6.3946,156.39,156.3,0.371402]
[1727372956502,6.3949,156.38,156.3,0.371402]
[1727372957604,6.3949,156.38,156.31,6.5347]
[1727372957800,26.3943,156.39,156.31,6.5347]
[1727372958501,7.99356419,156.39,156.31,6.5347]
[1727372958705,6.3947,156.38,156.31,6.5347]
[1727372959014,23.776884,156.36,156.31,6.5347]
[1727372959184,1.59928135,156.35,156.31,6.5347]
[1727372960504,24.027864,156.38,156.31,6.5347]
[1727372960880,1.59921728,156.37,156.31,6.5347]
[1727372962512,24.027864,156.36,156.31,6.5347]
[1727372963390,1.5994273,156.35,156.31,6.5347]
[1727372965600,24.027864,156.36,156.31,6.5347]
[1727372967416,23.902374,156.36,156.31,6.5347]
[1727372967711,23.776884,156.36,156.31,6.5347]
[1727372969620,1.59927235,156.35,156.31,6.5347]
[1727372970014,1.59927235,156.35,156.3,0.371402]
[1727372970213,23.776884,156.34,156.3,0.371402]
[1727372970392,1.59958552,156.33,156.3,0.371402]
[1727372971797,0.25098,156.31,156.3,0.371402]
[1727372972003,32.02533245,156.31,156.3,0.371402]
[1727372972190,52.02533245,156.31,156.3,0.371402]
[1727372973312,50.425364,156.31,156.3,0.371402]
[1727372975430,24.027864,156.31,156.3,0.371402]
[1727372977626,50.425364,156.31,156.3,0.371402]
[1727372979395,52.02551676,156.31,156.3,0.371402]
[1727372980527,50.425364,156.31,156.3,0.371402]
[1727372983034,52.02562674,156.31,156.3,0.371402]
[1727372983200,50.425364,156.31,156.3,0.371402]
[1727372985805,52.02550751,156.31,156.3,0.371402]
[1727372987826,58.68757548,156.31,156.3,0.371402]
[1727372992708,65.09357548,156.31,156.3,0.371402]
[1727373001131,6.66206797,156.31,156.3,0.371402]
[1727373001317,6.3963,156.34,156.3,0.371402]
[1727373001512,6.396,156.35,156.3,0.371402]
[1727373001833,6.66119896,156.34,156.3,0.371402]
[1727373002034,6.3958,156.36,156.3,0.371402]
[1727373002225,6.3959,156.35,156.3,0.371402]
[1727373002425,13.05648055,156.36,156.3,0.371402]
[1727373003035,6.66098055,156.36,156.3,0.371402]
[1727373003215,13.05648055,156.36,156.3,0.371402]
[1727373003420,0.12549,156.35,156.3,0.371402]
[1727373003616,24.027864,156.35,156.3,0.371402]
[1727373003824,0.12549,156.35,156.3,0.371402]
[1727373004646,6.66098055,156.36,156.3,0.371402]
[1727373005538,1.59918593,156.35,156.31,22.4283]
[1727373006165,6.395,156.38,156.31,22.4283]
[1727373006166,13.05763139,156.38,156.31,22.4283]
[1727373006320,14.65700227,156.38,156.31,22.4283]
[1727373006751,6.66263139,156.38,156.31,35.03450838]
[1727373006928,22.1296,156.44,156.33,12.60620838]
[1727373007125,22.1296,156.44,156.31,22.4283]
[1727373007126,1.11377553,156.46,156.36,16.3425]
[1727373007319,6.66122493,156.41,156.36,16.3425]
[1727373007520,6.3922,156.44,156.36,16.3425]
[1727373007738,6.3922,156.44,156.37,6.0858]
[1727373007739,1.59868084,156.43,156.37,6.0858]
[1727373008047,1.59860267,156.42,156.37,18.69200838]
[1727373008350,6.65979819,156.45,156.37,18.69200838]
[1727373008719,21.59855782,156.44,156.37,18.69200838]
[1727373009745,20.0,156.44,156.37,18.69200838]
[1727373009925,20.0,156.45,156.37,18.69200838]
[1727373010128,13.3036654,156.47,156.39,12.60620838]
[1727373010347,13.3036654,156.47,156.37,25.73229163]
[1727373010645,0.2533598,156.47,156.38,16.3425]
[1727373010940,0.2533598,156.47,156.39,19.64649163]
[1727373011332,0.2533598,156.47,156.41,19.64649163]
[1727373012844,0.2533598,156.47,156.42,6.0858]
[1727373019826,30.168984,156.45,156.38,22.6506]
[1727373020027,1.59836471,156.44,156.38,22.6506]
[1727373020434,23.776884,156.43,156.38,22.6506]
[1727373020735,1.5985867,156.42,156.38,22.6506]
[1727373020933,23.776884,156.43,156.38,22.6506]
[1727373021130,0.25098,156.46,156.38,22.6506]
[1727373021345,23.776884,156.45,156.38,22.6506]
[1727373021949,1.5983732,156.44,156.38,22.6506]
[1727373022340,23.776884,156.45,156.38,22.6506]
[1727373022847,30.168884,156.45,156.38,22.6506]
[1727373023041,23.776884,156.43,156.38,22.6506]
[1727373023248,1.59853831,156.42,156.38,22.6506]
[1727373024157,23.776884,156.41,156.38,16.3425]
[1727373025451,1.59872762,156.4,156.38,16.3425]
[1727373025848,1.59872762,156.39,156.34,21.591]
[1727373026045,7.99302762,156.39,156.34,21.591]
[1727373026554,6.3947,156.38,156.34,21.591]
[1727373026755,1.59904699,156.37,156.3,15.654302]
[1727373026971,23.776884,156.36,156.3,15.654302]
[1727373027664,1.59924036,156.35,156.3,15.654302]
[1727373028249,23.902374,156.37,156.3,15.654302]
[1727373028564,1.59923717,156.36,156.3,15.654302]
[1727373029561,23.776884,156.35,156.3,15.654302]
[1727373029764,1.59944279,156.34,156.3,15.654302]
[1727373030063,23.776884,156.33,156.3,0.371402]
[1727373030252,1.59955388,156.32,156.3,0.371402]
[1727373032866,23.902374,156.33,156.3,0.371402]
[1727373033051,1.59967566,156.32,156.3,0.371402]
[1727373033976,30.425364,156.31,156.3,0.371402]
[1727373035152,32.02555242,156.31,156.3,0.371402]
[1727373035557,24.027864,156.31,156.3,0.371402]
[1727373036665,32.02529052,156.31,156.3,0.371402]
[1727373038459,24.027864,156.31,156.3,0.371402]
[1727373039052,25.62780862,156.31,156.3,0.371402]
[1727373039572,32.02530862,156.31,156.3,0.371402]
[1727373042166,24.027864,156.31,156.3,0.371402]
[1727373042664,6.667218,156.33,156.3,0.371402]
[1727373042879,6.3955,156.36,156.3,0.371402]
[1727373043165,6.6659271,156.35,156.3,0.371402]
[1727373043363,6.3947,156.38,156.3,0.371402]
[1727373043563,15.7947,156.43,156.31,19.64649163]
[1727373043747,6.66446291,156.39,156.31,19.64649163]
[1727373044047,6.393,156.42,156.31,19.64649163]
[1727373044241,13.05587174,156.43,156.33,19.64649163]
[1727373044562,6.3926,156.43,156.33,19.64649163]
[1727373044765,7.99148244,156.43,156.33,19.64649163]
[1727373045567,6.3931,156.42,156.33,19.64649163]
[1727373046470,24.027864,156.41,156.33,19.64649163]
[1727373046973,26.3926,156.44,156.33,19.64649163]
[1727373047146,26.3926,156.44,156.35,19.64649163]
[1727373047346,6.66284174,156.45,156.36,15.4582]
[1727373047550,0.2533598,156.47,156.36,15.4582]
[1727373047868,7.99022994,156.46,156.36,15.4582]
[1727373048066,1.59852994,156.46,156.36,15.4582]
[1727373048246,6.3918,156.45,156.36,15.4582]
[1727373048441,1.59853323,156.44,156.36,15.4582]
[1727373048667,7.99073323,156.44,156.36,15.4582]
[1727373049375,25.62652757,156.43,156.36,15.4582]
[1727373050268,23.902374,156.43,156.36,15.4582]
[1727373050474,24.027864,156.44,156.36,15.4582]
[1727373053764,23.776884,156.42,156.36,15.4582]
[1727373053952,1.5986183,156.41,156.36,15.4582]
[1727373055153,23.776884,156.42,156.36,15.4582]
[1727373055674,1.59861753,156.41,156.36,15.4582]
[1727373056371,23.776884,156.4,156.36,15.4582]
[1727373056761,23.776884,156.41,156.36,15.4582]
[1727373057648,23.776884,156.42,156.36,15.4582]
[1727373058045,1.59872862,156.41,156.36,15.4582]
[1727373059178,23.776884,156.4,156.36,15.4582]
[1727373059362,1.59887597,156.39,156.36,15.4582]
[1727373062091,23.776884,156.4,156.36,15.4582]
[1727373062374,0.12549,156.42,156.36,15.4582]
[1727373062951,30.296074,156.41,156.36,15.4582]
[1727373063276,1.59885972,156.4,156.36,15.4582]
[1727373063464,23.776884,156.39,156.32,15.2825]
[1727373063661,1.59906435,156.38,156.32,15.2825]
[1727373067489,23.776884,156.35,156.3,0.371402]
[1727373067775,30.424664,156.33,156.3,0.371402]
[1727373068076,23.902374,156.33,156.3,0.371402]
[1727373069070,23.776884,156.33,156.3,0.371402]
[1727373069475,1.59951127,156.32,156.3,0.371402]
[1727373072858,23.776884,156.35,156.3,0.371402]
[1727373073065,23.776884,156.36,156.3,0.371402]
[1727373074487,23.776884,156.34,156.3,0.371402]
[1727373074666,1.59948609,156.33,156.3,0.371402]
[1727373075068,1.59955252,156.32,156.3,0.371402]
[1727373076394,0.12549,156.33,156.3,0.371402]
[1727373077685,23.776884,156.32,156.3,0.371402]
[1727373077978,1.59963409,156.31,156.3,0.371402]
[1727373078184,25.37651809,156.31,156.3,0.371402]
[1727373078373,31.89950809,156.31,156.3,0.371402]
[1727373078564,30.299874,156.31,156.3,0.371402]
[1727373079562,30.425364,156.31,156.3,0.371402]
[1727373080388,6.3959,156.35,156.3,0.371402]
[1727373080874,20.0,156.37,156.3,0.371402]
[1727373081067,6.3963,156.34,156.3,0.371402]
[1727373081573,23.902374,156.33,156.3,0.371402]
[1727373081968,1.59961976,156.32,156.3,0.371402]
[1727373082587,23.902374,156.33,156.3,0.371402]
[1727373084869,23.776884,156.34,156.3,0.371402]
[1727373085067,23.776884,156.35,156.3,0.371402]
[1727373085388,6.3953,156.37,156.3,0.371402]
[1727373086692,24.027864,156.36,156.3,0.371402]
[1727373086993,0.12549,156.36,156.3,0.371402]
[1727373087586,6.6622846,156.38,156.3,0.371402]
[1727373087780,1.59921333,156.36,156.3,0.371402]
[1727373088715,23.902374,156.35,156.3,0.371402]
[1727373088883,1.59939036,156.34,156.3,0.371402]
[1727373089284,23.902374,156.33,156.3,0.371402]
[1727373089491,1.59959319,156.32,156.3,0.371402]
[1727373090394,1.59961733,156.31,156.3,0.371402]
[1727373090890,23.776884,156.32,156.3,0.371402]
[1727373091191,1.59960542,156.31,156.3,0.371402]
[1727373091396,23.776884,156.32,156.3,0.371402]
[1727373091701,1.59959956,156.31,156.3,0.371402]
[1727373091865,23.776884,156.32,156.3,0.371402]
[1727373092067,1.59959847,156.31,156.3,0.371402]
[1727373092267,6.3964,156.34,156.3,0.371402]
[1727373092268,23.776884,156.32,156.3,0.371402]
[1727373092779,1.59958985,156.31,156.3,0.371402]
[1727373094469,25.37647385,156.31,156.3,0.371402]
[1727373094669,23.776884,156.31,156.3,0.371402]
[1727373096562,24.027864,156.31,156.3,0.371402]
[1727373096969,23.776884,156.31,156.3,0.371402]
[1727373097280,25.3766479,156.31,156.3,0.371402]
[1727373097485,23.776884,156.31,156.3,0.371402]
[1727373097691,25.37664959,156.31,156.3,0.371402]
[1727373098374,23.776884,156.31,156.3,0.371402]
[1727373101590,6.66435115,156.34,156.3,0.371402]
[1727373101969,1.59944034,156.33,156.3,0.371402]
[1727373102571,7.99614034,156.33,156.3,0.371402]
[1727373102766,23.776884,156.32,156.3,0.371402]
[1727373104171,1.59956945,156.31,156.3,0.371402]
[1727373104373,23.776884,156.32,156.3,0.371402]
[1727373105175,23.776884,156.33,156.3,0.371402]
[1727373105381,25.37634215,156.33,156.3,0.371402]
[1727373106279,31.77304215,156.33,156.3,0.371402]
[1727373109103,30.173584,156.33,156.3,0.371402]
[1727373110078,23.776884,156.33,156.3,0.371402]
[1727373110684,6.66435115,156.34,156.3,12.96848647]
[1727373111079,6.66435115,156.34,156.3,0.371402]
[1727373111295,38.2635,156.4,156.3,0.371402]
[1727373111296,6.3959,156.35,156.3,0.371402]
[1727373112281,23.776884,156.34,156.3,0.371402]
[1727373112478,1.59939405,156.33,156.3,0.371402]
[1727373112692,23.902374,156.32,156.3,0.371402]
[1727373112885,25.37660478,156.31,156.3,0.371402]
[1727373113714,32.02508478,156.31,156.3,0.371402]
[1727373113903,30.425364,156.31,156.3,0.371402]
[1727373114083,32.02540127,156.31,156.3,0.371402]
[1727373115110,30.425364,156.31,156.3,0.371402]
[1727373115279,32.02551786,156.31,156.3,0.371402]
[1727373115603,52.02551786,156.31,156.3,0.371402]
[1727373115981,52.02551786,156.31,156.25,0.3334692]
[1727373115982,6.65048,156.26,156.25,0.3334692]
[1727373116186,32.02772307,156.26,156.25,0.3334692]
[1727373116702,24.027864,156.26,156.25,0.3334692]
[1727373120592,23.776884,156.26,156.25,0.3334692]
[1727373122885,43.902374,156.28,156.25,0.3334692]
[1727373123306,6.66690195,156.29,156.25,0.3334692]
[1727373123502,6.3974,156.32,156.25,0.3334692]
[1727373123879,6.3975,156.31,156.25,0.3334692]
[1727373124725,1.59980751,156.3,156.25,0.3334692]
[1727373124877,0.25098,156.29,156.25,0.3334692]
[1727373125082,23.776884,156.27,156.25,0.3334692]
[1727373125280,1.60017092,156.26,156.25,0.3334692]
[1727373125493,25.37705492,156.26,156.25,0.3334692]
[1727373125878,0.25098,156.29,156.25,0.3334692]
[1727373125879,23.776884,156.29,156.25,0.3334692]
[1727373126082,23.776884,156.27,156.25,0.3334692]
[1727373126282,25.37706897,156.26,156.25,0.3334692]
[1727373128012,23.776884,156.26,156.25,0.3334692]
[1727373128308,23.776884,156.28,156.25,0.3334692]
[1727373128808,23.776884,156.29,156.25,0.3334692]
[1727373129107,23.776884,156.3,156.25,0.3334692]
[1727373130101,6.66649412,156.32,156.25,0.3334692]
[1727373130102,6.66649412,156.32,156.26,12.59708447]
[1727373130305,6.3964,156.34,156.26,12.59708447]
[1727373131105,1.59963886,156.35,156.26,12.59708447]
[1727373131313,1.59963886,156.35,156.25,16.1669692]
[1727373131493,6.3971,156.32,156.25,16.1669692]
[1727373131694,24.027864,156.31,156.25,16.1669692]
[1727373132493,1.59984579,156.3,156.25,16.1669692]
[1727373132796,23.776884,156.29,156.25,16.1669692]
[1727373133106,1.59996054,156.28,156.25,16.1669692]
[1727373133309,1.59996054,156.28,156.25,0.3334692]
[1727373133807,23.776884,156.27,156.25,0.3334692]
[1727373134013,1.60015182,156.26,156.25,0.3334692]
[1727373134807,25.37703582,156.26,156.25,0.3334692]
[1727373135389,6.399,156.28,156.25,0.3334692]
[1727373135613,23.776884,156.27,156.25,0.3334692]
[1727373135788,25.37703539,156.27,156.25,0.3334692]
[1727373136291,23.776884,156.28,156.25,0.3334692]
[1727373136593,1.59999691,156.27,156.25,0.3334692]
[1727373137624,23.776884,156.28,156.25,0.3334692]
[1727373137790,1.59998981,156.27,156.25,0.3334692]
[1727373138685,23.776884,156.28,156.25,0.3334692]
[1727373138893,6.52299,156.31,156.25,0.3334692]
[1727373139185,23.776884,156.3,156.25,0.3334692]
[1727373139610,6.52299,156.31,156.25,0.3334692]
[1727373139611,30.175684,156.28,156.25,0.3334692]
[1727373139916,23.776884,156.28,156.25,0.3334692]
[1727373140606,1.60011754,156.27,156.25,0.3334692]
[1727373142115,30.175684,156.28,156.25,0.3334692]
[1727373144624,0.12549,156.28,156.25,0.3334692]
[1727373145301,0.25098,156.28,156.25,0.3334692]
[1727373145601,1.60016532,156.27,156.25,0.3334692]
[1727373145801,30.427364,156.26,156.25,0.3334692]
[1727373146031,23.776884,156.26,156.25,0.3334692]
[1727373146307,32.02761874,156.26,156.25,0.3334692]
[1727373146700,25.62811874,156.26,156.25,0.3334692]
[1727373147419,24.027864,156.26,156.25,0.3334692]
[1727373147916,25.62819563,156.26,156.25,0.3334692]
[1727373148317,45.62819563,156.26,156.25,0.3334692]
[1727373148521,23.776884,156.26,156.25,0.3334692]
[1727373150824,6.3989,156.28,156.25,0.3334692]
[1727373151003,20.0,156.29,156.25,0.3334692]
[1727373151621,26.3984,156.29,156.25,0.3334692]
[1727373151824,7.99877154,156.28,156.25,0.3334692]
[1727373152212,23.776884,156.27,156.25,0.3334692]
[1727373152523,23.776884,156.26,156.25,0.3334692]
[1727373155736,23.776884,156.28,156.25,0.3334692]
[1727373156027,1.60013604,156.27,156.25,0.3334692]
[1727373156409,1.60008871,156.26,156.25,0.3334692]
[1727373157223,23.776884,156.28,156.25,0.3334692]
[1727373157732,23.776884,156.26,156.25,0.3334692]
[1727373162935,25.37712473,156.26,156.25,0.3334692]
[1727373163137,23.776884,156.26,156.25,0.3334692]
[1727373163756,23.902374,156.28,156.25,0.3334692]
[1727373163913,30.301174,156.28,156.25,0.3334692]
[1727373164120,1.6000959,156.27,156.25,0.3334692]
[1727373166351,30.301174,156.28,156.25,0.3334692]
[1727373166726,1.60013853,156.27,156.25,0.3334692]
[1727373167455,1.60013853,156.27,156.2,8.33204137]
[1727373170836,30.301174,156.28,156.24,12.60545625]
[1727373170837,1.60013819,156.28,156.24,12.60545625]
[1727373171037,6.66751575,156.3,156.26,12.60545625]
[1727373171247,17.25136186,156.36,156.26,12.60545625]
[1727373171440,6.6500598,156.33,156.26,12.60545625]
[1727373171644,1.59961551,156.32,156.26,12.60545625]
[1727373172225,7.99681551,156.32,156.26,12.60545625]
[1727373172425,7.99681551,156.32,156.24,28.84085625]
[1727373172650,6.3972,156.32,156.24,28.84085625]
[1727373173148,23.902374,156.31,156.24,28.84085625]
[1727373173532,1.59978771,156.3,156.24,28.84085625]
[1727373173736,1.59978771,156.3,156.24,16.2354]
[1727373174528,30.299874,156.31,156.24,16.2354]
[1727373175126,1.59981765,156.3,156.24,16.2354]
[1727373179262,23.902374,156.31,156.25,12.60545625]
[1727373179559,23.776884,156.29,156.2,16.2354]
[1727373179867,23.776884,156.27,156.21,12.60545625]
[1727373180044,23.776884,156.28,156.21,12.60545625]
[1727373180964,1.60008208,156.27,156.2,16.2354]
[1727373181637,23.776884,156.26,156.2,16.2354]
[1727373184030,1.60029396,156.25,156.2,16.2354]
[1727373184234,23.776884,156.26,156.2,16.2354]
[1727373184830,1.60029452,156.25,156.2,16.2354]
[1727373185039,23.776884,156.26,156.2,16.2354]
[1727373186145,1.60029326,156.25,156.2,16.2354]
[1727373186341,23.776884,156.26,156.19,12.60545625]
[1727373186540,6.52439,156.28,156.19,12.60545625]
[1727373186762,25.37705414,156.27,156.19,12.60545625]
[1727373187770,0.25098,156.26,156.16,16.8240692]
[1727373188069,23.776884,156.24,156.16,16.8240692]
[1727373188247,1.6005011,156.23,156.16,16.8240692]
[1727373188775,0.12549,156.24,156.16,16.8240692]
[1727373189160,30.176984,156.25,156.17,12.60545625]
[1727373189367,23.776884,156.25,156.17,12.60545625]
[1727373190466,1.60034077,156.24,156.16,16.8240692]
[1727373190674,23.776884,156.25,156.17,12.60545625]
[1727373191245,1.60034553,156.24,156.17,12.60545625]
[1727373191457,23.776884,156.25,156.16,16.8240692]
[1727373191667,23.776884,156.25,156.17,12.60545625]
[1727373192254,23.776884,156.23,156.16,16.8240692]
[1727373192454,1.60054983,156.22,156.16,0.3334692]
[1727373193149,0.25098,156.19,156.16,0.3334692]
[1727373193352,23.776884,156.17,156.16,0.3334692]
[1727373194677,25.37808824,156.17,156.16,0.3334692]
[1727373194847,25.62906824,156.17,156.16,0.3334692]
[1727373196158,32.03226824,156.17,156.16,0.3334692]
[1727373196749,58.57066824,156.17,156.16,0.3334692]
[1727373196947,58.57066824,156.17,156.12,0.371402]
[1727373196948,43.902374,156.14,156.12,0.371402]
[1727373197255,52.03434165,156.13,156.12,0.371402]
[1727373197657,44.027864,156.13,156.12,0.371402]
[1727373197860,50.432764,156.13,156.12,0.371402]
[1727373198753,44.027864,156.13,156.12,0.371402]
[1727373199062,50.432764,156.13,156.12,0.371402]
[1727373202369,66.251464,156.13,156.12,0.371402]
[1727373202560,72.92621443,156.13,156.12,0.371402]
[1727373202766,72.92621443,156.13,156.07,0.3334692]
[1727373202767,0.25098,156.08,156.07,0.3334692]
[1727373203067,45.63008977,156.08,156.07,0.3334692]
[1727373203252,52.03698977,156.08,156.07,0.3334692]
[1727373203865,23.776884,156.07,156.02,0.3806133]
[1727373204077,1.60222869,156.06,156.02,0.6525904]
[1727373207675,35.43715043,156.13,156.02,13.25804665]
[1727373207853,6.4053,156.12,156.02,13.25804665]
[1727373208257,29.03185043,156.13,156.02,13.25804665]
[1727373209377,1.60177357,156.12,156.02,13.25804665]
[1727373209882,23.776884,156.11,156.02,13.25804665]
[1727373210066,1.601808,156.1,156.02,13.25804665]
[1727373210579,23.776884,156.12,156.02,13.25804665]
[1727373210958,23.776884,156.12,156.04,12.60545625]
[1727373211486,1.60169212,156.12,156.04,12.60545625]
[1727373212162,8.00709212,156.12,156.02,13.25804665]
[1727373212363,1.60169212,156.12,156.02,13.25804665]
[1727373212561,8.00729212,156.12,156.02,13.25804665]
[1727373212767,30.433564,156.11,156.02,0.6525904]
[1727373212965,23.776884,156.09,156.02,0.6525904]
[1727373213184,1.6019663,156.08,156.02,0.6525904]
[1727373213482,1.6019663,156.08,156.02,13.25804665]
[1727373214464,23.902374,156.12,156.05,12.60545625]
[1727373214880,1.60174293,156.11,156.05,12.60545625]
[1727373215268,23.902374,156.12,156.05,12.60545625]
[1727373215996,1.60172611,156.11,156.05,12.60545625]
[1727373216789,23.776884,156.1,156.02,0.6525904]
[1727373216964,23.776884,156.1,156.02,13.25804665]
[1727373217163,23.776884,156.11,156.02,13.25804665]
[1727373217366,0.12549,156.1,156.02,0.6525904]
[1727373217565,0.12549,156.1,156.02,13.25804665]
[1727373218497,23.776884,156.09,156.02,13.25804665]
[1727373218795,1.60196528,156.08,156.02,13.25804665]
[1727373218985,23.776884,156.09,156.02,13.25804665]
[1727373219167,23.902374,156.11,156.02,13.25804665]
[1727373219586,23.902374,156.12,156.04,12.60545625]
[1727373219966,0.12549,156.11,156.04,12.60545625]
[1727373220173,0.12549,156.11,156.03,12.60545625]
[1727373220782,23.902374,156.12,156.05,12.60545625]
[1727373221482,6.66740994,156.13,156.05,12.60545625]
[1727373221785,6.66740994,156.13,156.07,12.60545625]
[1727373221988,21.2741,156.16,156.07,12.60545625]
[1727373222299,27.93980847,156.16,156.07,12.60545625]
[1727373222613,8.00593609,156.15,156.06,28.98695625]
[1727373222772,24.027864,156.14,156.06,28.98695625]
[1727373223274,27.93980847,156.16,156.06,28.98695625]
[1727373223474,34.34380847,156.16,156.06,28.98695625]
[1727373224796,24.027864,156.15,156.06,28.98695625]
[1727373224998,50.433964,156.1,156.02,0.6525904]
[1727373225179,44.027864,156.1,156.02,0.6525904]
[1727373225495,30.434964,156.08,156.02,0.6525904]
[1727373225885,6.5765,156.13,156.04,12.60545625]
[1727373226082,15.6579,156.14,156.04,12.60545625]
[1727373226083,24.027864,156.12,156.04,12.60545625]
[1727373226288,30.433164,156.12,156.04,16.3599]
[1727373226675,23.902374,156.1,156.04,16.3599]
[1727373226897,1.60192583,156.09,156.04,16.3599]
[1727373229308,23.776884,156.1,156.04,16.3599]
[1727373229704,23.776884,156.11,156.04,16.3599]
[1727373229882,1.60178769,156.1,156.04,16.3599]
[1727373230712,23.776884,156.11,156.02,0.6525904]
[1727373230713,6.66570847,156.16,156.09,19.73552968]
[1727373231007,1.11531152,156.23,156.15,16.3599]
[1727373231185,0.2625711,156.25,156.16,26.00242208]
[1727373232306,1.60061047,156.24,156.16,20.0]
[1727373232511,1.60061047,156.24,156.15,16.3599]
[1727373235703,20.2625711,156.25,156.15,36.09542968]
[1727373235898,0.2625711,156.25,156.16,20.0]
[1727373236313,0.2625711,156.25,156.18,20.0]
[1727373236494,0.2625711,156.25,156.19,19.73552968]
[1727373236698,0.2625711,156.25,156.19,39.73552968]
[1727373237502,0.2625711,156.25,156.19,20.0]
[1727373237698,0.2625711,156.25,156.18,20.0]
[1727373242225,1.86279158,156.25,156.18,20.0]
[1727373242417,0.2625711,156.25,156.18,20.0]
[1727373245001,1.86293018,156.25,156.16,20.0]
[1727373245726,21.86293018,156.25,156.16,20.0]
[1727373246022,28.26313018,156.25,156.16,20.0]
[1727373246923,16.205,156.24,156.16,20.0]
[1727373247111,1.60063831,156.23,156.16,20.0]
[1727373247827,16.205,156.24,156.16,20.0]
[1727373248420,16.205,156.24,156.15,16.3599]
[1727373248726,1.60059053,156.23,156.16,20.0]
[1727373251507,16.205,156.24,156.16,20.0]
[1727373255030,16.205,156.24,156.15,16.3599]
[1727373255831,20.0,156.15,156.02,0.3806133]
[1727373256137,20.0,156.15,156.07,0.2719771]
[1727373256138,0.12549,156.11,156.07,0.2719771]
[1727373256432,0.12549,156.09,156.07,0.2719771]
[1727373256612,23.776884,156.08,156.07,0.2719771]
[1727373256939,23.902374,156.08,156.07,0.2719771]
[1727373262446,24.027864,156.08,156.07,0.2719771]
[1727373262940,30.434764,156.08,156.07,0.2719771]
[1727373265337,30.434764,156.08,155.96,20.0]
[1727373265338,24.027864,156.08,155.96,20.0]
[1727373265531,22.942,156.1,156.05,0.2540198]
[1727373265532,24.027864,156.06,156.05,0.2540198]
[1727373266043,23.902374,156.06,156.05,0.2540198]
[1727373270344,30.435564,156.06,156.05,0.2540198]
[1727373274946,24.027864,156.06,156.05,0.2540198]
[1727373275337,30.435564,156.06,156.05,0.2540198]
[1727373279052,47.35398975,156.06,156.05,0.2540198]
[1727373279357,6.4087,156.04,156.01,0.372062]
[1727373279556,23.776884,156.02,156.01,0.5599118]
[1727373281140,6.4087,156.04,156.01,0.5599118]
[1727373281451,23.776884,156.03,156.01,0.5599118]
[1727373283228,25.37942175,156.02,156.01,0.5599118]